bitfinex/quotes_SOLUSD_20251201
["timestamp","ask_amount","ask_price","bid_price","bid_amount"]
[1764558114189,7.91899762,127.32,127.31,0.66]
[1764558114504,7.91899762,127.32,127.31,4.22]
[1764558115107,7.91899762,127.32,127.29,0.66]
[1764558115301,7.91899762,127.31,127.3,3.56]
[1764558115512,7.91899762,127.31,127.3,0.66]
[1764558115677,7.91899762,127.31,127.3,4.22]
[1764558116198,7.91899762,127.31,127.3,0.66]
[1764558116600,7.91899762,127.31,127.3,4.22]
[1764558116798,7.91899762,127.32,127.3,4.22]
[1764558117005,7.91899762,127.32,127.27,7.91899762]
[1764558117174,7.91899762,127.3,127.26,7.85772703]
[1764558117374,0.58,127.33,127.27,4.25]
[1764558117679,7.91899762,127.3,127.28,3.56]
[1764558117882,7.91899762,127.29,127.28,3.56]
[1764558118198,7.91899762,127.29,127.24,0.69]
[1764558118396,7.91899762,127.26,127.24,4.25]
[1764558118603,0.58,127.29,127.24,4.25]
[1764558118806,7.91899762,127.28,127.24,4.25]
[1764558119001,7.91899762,127.26,127.22,0.69]
[1764558119300,7.91899762,127.24,127.2,0.69]
[1764558119609,7.91899762,127.24,127.21,3.56]
[1764558120091,7.91899762,127.24,127.21,4.25]
[1764558120397,7.91899762,127.25,127.22,0.69]
[1764558120598,15.77749146,127.26,127.22,0.69]
[1764558121005,7.91899762,127.25,127.22,4.25]
[1764558121300,7.85849384,127.26,127.22,4.25]
[1764558121493,7.91899762,127.25,127.22,4.25]
[1764558121693,7.91899762,127.26,127.23,0.69]
[1764558122001,7.91899762,127.25,127.23,4.25]
[1764558122401,7.91899762,127.28,127.24,0.69]
[1764558122698,7.91899762,127.3,127.24,8.60899762]
[1764558123113,7.91899762,127.28,127.25,3.56]
[1764558123481,7.91899762,127.31,127.26,8.60899762]
[1764558123686,15.77389487,127.31,127.26,16.46643962]
[1764558123886,7.85489725,127.31,127.27,0.69]
[1764558124305,15.77333267,127.32,127.27,8.60899762]
[1764558124687,15.77333267,127.32,127.28,0.69]
[1764558124887,15.77333267,127.32,127.29,3.56]
[1764558125207,7.85433505,127.32,127.29,3.56]
[1764558125398,7.85433505,127.32,127.29,4.25]
[1764558125593,15.77333267,127.32,127.29,3.56]
[1764558125798,15.77333267,127.32,127.3,0.69]
[1764558125985,15.77333267,127.32,127.29,3.56]
[1764558126185,15.77333267,127.32,127.29,0.69]
[1764558127905,7.85433505,127.32,127.29,0.69]
[1764558129410,7.85433505,127.32,127.29,4.25]
[1764558129906,7.91899762,127.3,127.24,0.69]
[1764558130114,7.91899762,127.27,127.24,4.25]
[1764558130499,7.91899762,127.27,127.24,3.56]
[1764558130701,16.308864,127.29,127.25,0.69]
[1764558130905,24.22786162,127.29,127.25,0.69]
[1764558131087,7.91899762,127.28,127.26,3.56]
[1764558131696,7.91899762,127.28,127.26,4.25]
[1764558131893,7.91899762,127.28,127.19,55.61776676]
[1764558131894,7.91899762,127.27,127.19,35.96384648]
[1764558132105,7.91899762,127.26,127.2,20.03063284]
[1764558132310,27.49861681,127.28,127.2,12.11163522]
[1764558132509,7.91899762,127.26,127.21,0.69]
[1764558132812,7.91899762,127.26,127.21,8.60899762]
[1764558133002,7.91899762,127.26,127.22,0.69]
[1764558133312,15.77694532,127.26,127.23,3.56]
[1764558133497,7.91899762,127.26,127.23,3.56]
[1764558133702,15.77650686,127.27,127.24,0.69]
[1764558134312,24.16505233,127.29,127.24,0.69]
[1764558134521,16.308864,127.29,127.24,0.69]
[1764558134705,7.91899762,127.28,127.25,3.56]
[1764558135016,7.91899762,127.27,127.25,3.56]
[1764558135319,24.1649888,127.29,127.25,4.25]
[1764558135498,7.91899762,127.27,127.25,4.25]
[1764558135709,7.91899762,127.28,127.25,4.25]
[1764558135903,7.91899762,127.27,127.25,4.25]
[1764558136098,7.91899762,127.28,127.25,4.25]
[1764558136617,7.91899762,127.28,127.25,0.69]
[1764558136805,7.91899762,127.28,127.25,4.25]
[1764558137005,24.1649888,127.29,127.25,4.25]
[1764558137208,7.91899762,127.28,127.25,4.25]
[1764558137406,7.91899762,127.26,127.22,4.25]
[1764558137807,7.91899762,127.26,127.23,0.69]
[1764558138538,12.40053206,127.29,127.23,20.9501116]
[1764558138822,12.40053206,127.28,127.23,20.9501116]
[1764558139028,12.40053206,127.29,127.24,0.69]
[1764558139191,12.40053206,127.29,127.24,13.09053206]
[1764558139393,12.40053206,127.28,127.25,3.56]
[1764558139932,12.40053206,127.28,127.25,4.25]
[1764558140099,12.40053206,127.29,127.25,4.25]
[1764558140915,7.8566939,127.28,127.25,4.25]
[1764558141618,7.8566939,127.28,127.26,0.69]
[1764558141807,7.85607667,127.29,127.26,0.69]
[1764558141994,20.25620475,127.3,127.26,0.69]
[1764558142201,7.85567269,127.3,127.26,0.69]
[1764558142395,20.25620475,127.3,127.26,0.69]
[1764558142807,20.25620475,127.3,127.26,8.54785303]
[1764558143008,7.85567269,127.3,127.26,8.54785303]
[1764558143218,7.85567269,127.3,127.27,0.69]
[1764558143804,7.85484251,127.31,127.27,8.54726469]
[1764558144228,7.85484251,127.31,127.28,0.69]
[1764558144416,7.85484251,127.31,127.29,3.54]
[1764558144804,7.85484251,127.31,127.29,4.24]
[1764558145227,7.85484251,127.31,127.29,3.54]
[1764558145527,20.25537457,127.31,127.29,3.54]
[1764558145902,7.85484251,127.31,127.29,3.54]
[1764558146103,7.85484251,127.31,127.3,0.68]
[1764558146299,12.40053206,127.33,127.3,0.68]
[1764558146300,7.85381299,127.33,127.3,0.68]
[1764558146500,20.2516744,127.37,127.32,12.40053206]
[1764558146728,20.2516744,127.37,127.3,0.68]
[1764558146729,12.40053206,127.36,127.33,4.22]
[1764558146948,7.85114234,127.37,127.33,4.22]
[1764558147096,20.2516744,127.37,127.34,0.68]
[1764558147537,12.40053206,127.35,127.3,0.68]
[1764558147840,12.40053206,127.36,127.31,15.94053206]
[1764558148029,20.25278203,127.36,127.31,23.7949344]
[1764558148331,20.25278203,127.36,127.32,0.68]
[1764558149405,27.47899819,127.37,127.32,0.68]
[1764558149606,12.40053206,127.36,127.32,0.68]
[1764558150310,12.40053206,127.36,127.27,8.80994492]
[1764558150311,12.40053206,127.33,127.3,0.68]
[1764558150516,12.40053206,127.34,127.31,3.54]
[1764558150724,12.40053206,127.34,127.31,4.22]
[1764558151212,12.40053206,127.36,127.32,0.68]
[1764558151399,7.85237534,127.35,127.32,0.68]
[1764558151601,55.56035217,127.39,127.32,0.68]
[1764558151602,19.62516087,127.39,127.32,13.08053206]
[1764558151828,12.40053206,127.39,127.34,12.40053206]
[1764558152006,12.40053206,127.38,127.35,3.54]
[1764558152427,12.40053206,127.38,127.35,4.22]
[1764558153002,8.42929356,127.4,127.35,4.22]
[1764558153322,12.40053206,127.38,127.35,4.22]
[1764558153726,20.25158509,127.38,127.35,4.22]
[1764558154419,12.40053206,127.37,127.35,3.54]
[1764558155033,12.40053206,127.37,127.34,0.68]
[1764558155233,12.40053206,127.37,127.35,3.54]
[1764558155414,27.47736799,127.38,127.35,3.54]
[1764558155614,12.40053206,127.37,127.35,3.54]
[1764558156002,0.58,127.36,127.31,0.68]
[1764558156315,12.40053206,127.34,127.31,0.68]
[1764558157435,12.40053206,127.33,127.31,0.68]
[1764558157936,12.40053206,127.32,127.3,3.54]
[1764558158110,12.40053206,127.31,127.29,3.54]
[1764558158424,12.40053206,127.3,127.29,3.54]
[1764558158810,12.40053206,127.3,127.28,3.54]
[1764558159035,12.40053206,127.3,127.28,4.22]
[1764558160233,20.25609638,127.3,127.28,4.22]
[1764558161628,7.8548282,127.32,127.29,0.68]
[1764558161832,12.40053206,127.34,127.29,62.18]
[1764558162038,12.40053206,127.34,127.29,0.68]
[1764558162214,7.85360873,127.33,127.3,0.68]
[1764558162413,20.25414079,127.33,127.3,0.68]
[1764558162712,20.25414079,127.33,127.31,3.54]
[1764558163029,12.40053206,127.32,127.3,3.54]
[1764558163238,20.25414079,127.33,127.3,4.22]
[1764558163438,20.25414079,127.33,127.31,0.68]
[1764558163729,20.25414079,127.33,127.3,3.54]
[1764558163934,20.25414079,127.33,127.3,4.22]
[1764558164430,7.85360873,127.33,127.31,0.68]
[1764558164621,12.40053206,127.35,127.31,0.68]
[1764558165024,12.40053206,127.37,127.31,13.08053206]
[1764558165207,20.2516744,127.37,127.32,13.08053206]
[1764558165414,20.2516744,127.37,127.33,3.54]
[1764558165837,20.2516744,127.37,127.34,0.68]
[1764558167333,7.85114234,127.37,127.35,3.54]
[1764558167934,20.2516744,127.37,127.35,4.22]
[1764558168135,12.98053206,127.36,127.3,0.68]
[1764558168314,7.85237534,127.35,127.33,3.54]
[1764558168631,7.85237534,127.35,127.32,3.54]
[1764558169033,27.48331369,127.35,127.32,0.68]
[1764558169721,12.40053206,127.33,127.32,0.68]
[1764558169920,12.40053206,127.33,127.31,3.54]
[1764558169921,20.25424884,127.33,127.31,4.22]
[1764558170235,20.25424884,127.33,127.32,0.68]
[1764558170438,20.25424884,127.33,127.32,3.54]
[1764558172360,20.83424884,127.33,127.28,0.68]
[1764558172523,12.40053206,127.3,127.28,4.22]
[1764558173423,12.40053206,127.31,127.29,0.68]
[1764558173825,12.40053206,127.31,127.28,3.54]
[1764558174042,20.25568044,127.31,127.28,4.22]
[1764558174421,20.25568044,127.31,127.29,0.68]
[1764558174821,12.40053206,127.31,127.29,0.68]
[1764558175222,12.40053206,127.3,127.29,3.54]
[1764558175828,12.40053206,127.3,127.29,4.22]
[1764558176245,20.25556501,127.31,127.29,4.22]
[1764558176441,12.40053206,127.31,127.29,4.22]
[1764558176646,20.25547427,127.31,127.29,4.22]
[1764558177141,7.85494221,127.31,127.29,4.22]
[1764558177328,20.25547427,127.31,127.29,4.22]
[1764558177536,20.25547427,127.31,127.29,3.54]
[1764558177738,12.40053206,127.3,127.29,3.54]
[1764558178044,20.25547427,127.31,127.29,4.22]
[1764558179741,19.63338399,127.34,127.3,0.68]
[1764558179939,12.40053206,127.33,127.3,0.68]
[1764558180244,19.63338399,127.34,127.3,0.68]
[1764558180447,12.40053206,127.33,127.31,3.52]
[1764558180843,12.40053206,127.33,127.31,4.2]
[1764558181034,12.40053206,127.33,127.31,3.52]
[1764558181359,19.62884881,127.37,127.32,0.68]
[1764558181651,7.85175879,127.36,127.33,3.52]
[1764558181822,27.47545235,127.39,127.33,3.52]
[1764558182022,20.25044178,127.39,127.34,13.08053206]
[1764558182245,7.84990972,127.39,127.35,12.40053206]
[1764558182434,7.84990972,127.39,127.35,0.68]
[1764558182633,20.25044178,127.39,127.36,0.68]
[1764558182932,20.21117219,127.39,127.37,3.52]
[1764558185747,20.25105804,127.38,127.37,3.52]
[1764558185936,7.85052598,127.38,127.37,4.2]
[1764558186337,7.85011954,127.39,127.37,4.2]
[1764558186541,7.85011954,127.39,127.38,0.68]
[1764558186851,16.308864,127.43,127.38,0.68]
[1764558187037,7.84559861,127.46,127.38,13.08053206]
[1764558187241,12.40053206,127.44,127.39,20.25044178]
[1764558187433,39.86015364,127.46,127.41,12.40053206]
[1764558187627,27.45962158,127.46,127.42,3.52]
[1764558187831,27.45962158,127.46,127.43,0.68]
[1764558187832,7.84559861,127.46,127.43,0.68]
[1764558188045,0.2,127.5,127.45,12.40053206]
[1764558188251,0.2,127.5,127.41,25.11880892]
[1764558188252,0.2,127.5,127.47,28.70939606]
[1764558188429,0.2,127.5,127.46,4.2]
[1764558188430,0.2,127.5,127.46,20.508864]
[1764558188640,0.2,127.5,127.47,13.08053206]
[1764558188827,0.2,127.5,127.48,3.52]
[1764558189028,20.24115907,127.55,127.49,12.40053206]
[1764558189335,7.84062701,127.55,127.5,12.40053206]
[1764558189547,7.84062701,127.55,127.5,13.08053206]
[1764558189751,7.84062701,127.55,127.51,0.68]
[1764558189951,20.24115907,127.55,127.52,3.52]
[1764558190154,7.84062701,127.55,127.52,3.52]
[1764558190347,20.24115907,127.55,127.52,4.2]
[1764558190636,12.40053206,127.53,127.49,3.52]
[1764558190852,12.40053206,127.51,127.49,3.52]
[1764558191357,7.84313725,127.5,127.49,3.52]
[1764558191757,7.84313725,127.5,127.47,0.68]
[1764558191758,39.85151244,127.5,127.47,0.68]
[1764558191950,12.40053206,127.49,127.43,28.70939606]
[1764558192149,7.84313725,127.5,127.48,0.68]
[1764558192351,20.24366931,127.5,127.48,4.2]
[1764558192933,12.40053206,127.5,127.48,0.68]
[1764558193151,20.2418243,127.53,127.49,4.2]
[1764558193357,12.40053206,127.52,127.5,3.52]
[1764558193538,12.40053206,127.52,127.49,0.68]
[1764558193857,12.40053206,127.52,127.49,4.2]
[1764558194253,12.40053206,127.5,127.46,0.68]
[1764558194456,12.40053206,127.49,127.47,3.52]
[1764558194839,12.40053206,127.5,127.47,4.2]
[1764558195040,28.13452285,127.53,127.44,12.40053206]
[1764558195041,12.40053206,127.48,127.46,3.52]
[1764558195248,20.24551519,127.47,127.46,3.52]
[1764558195455,7.84498313,127.47,127.46,3.52]
[1764558195649,20.24551519,127.47,127.46,3.52]
[1764558195856,12.40053206,127.47,127.46,3.52]
[1764558196053,20.24551519,127.47,127.46,3.52]
[1764558196362,7.84498313,127.47,127.46,3.52]
[1764558196664,39.85797302,127.47,127.46,3.52]
[1764558196960,39.85797302,127.47,127.45,3.52]
[1764558197264,19.60977144,127.49,127.46,0.68]
[1764558197452,12.40053206,127.48,127.46,0.68]
[1764558198144,12.40053206,127.47,127.46,3.52]
[1764558199181,20.24551519,127.47,127.46,3.52]
[1764558199652,20.24551519,127.47,127.44,0.68]
[1764558199993,20.24551519,127.47,127.39,0.68]
[1764558199994,12.40053206,127.45,127.39,0.68]
[1764558200266,12.40053206,127.42,127.41,3.52]
[1764558200472,7.89374036,127.42,127.41,4.2]
[1764558200784,0.69,127.46,127.41,4.2]
[1764558200962,7.89374036,127.43,127.41,3.52]
[1764558201160,15.74154504,127.43,127.41,4.2]
[1764558202078,7.84780468,127.43,127.41,4.2]
[1764558202270,7.89374036,127.43,127.41,0.68]
[1764558202477,27.46238087,127.45,127.42,3.52]
[1764558202649,7.8462142,127.45,127.42,3.52]
[1764558202854,7.8462142,127.45,127.43,0.68]
[1764558202855,15.73995456,127.45,127.43,0.68]
[1764558204862,7.89374036,127.44,127.4,0.68]
[1764558205173,7.89374036,127.43,127.41,4.2]
[1764558205360,7.89374036,127.43,127.41,65.7]
[1764558206064,15.74118601,127.43,127.42,3.52]
[1764558206446,7.89374036,127.45,127.42,4.22]
[1764558206761,15.74018108,127.45,127.43,0.7]
[1764558207079,7.84644072,127.45,127.43,0.7]
[1764558208274,7.84565286,127.46,127.43,62.2]
[1764558208657,7.84509677,127.47,127.44,0.71]
[1764558208872,15.73883713,127.47,127.44,0.71]
[1764558209469,7.89374036,127.46,127.44,0.71]
[1764558209669,7.89374036,127.45,127.43,61.5]
[1764558209886,8.51509677,127.47,127.4,123.32292018]
[1764558209887,7.89374036,127.44,127.4,8.55870748]
[1764558210085,15.74118601,127.43,127.41,0.71]
[1764558210382,7.89374036,127.43,127.41,4.23]
[1764558210952,27.4617497,127.45,127.41,4.23]
[1764558211156,7.89374036,127.44,127.41,4.23]
[1764558211875,7.89374036,127.44,127.42,4.23]
[1764558212271,7.89374036,127.43,127.38,61.5]
[1764558212475,7.89374036,127.43,127.39,4.23]
[1764558212866,7.89374036,127.43,127.4,0.71]
[1764558213580,15.73995456,127.45,127.4,8.5588938]
[1764558213754,7.89374036,127.44,127.4,8.5588938]
[1764558213954,7.89374036,127.45,127.41,0.71]
[1764558214166,7.89374036,127.45,127.42,3.52]
[1764558214876,7.89374036,127.45,127.42,4.23]
[1764558215092,15.73953728,127.46,127.43,0.71]
[1764558215677,8.51579692,127.46,127.42,61.5]
[1764558215872,7.89374036,127.45,127.44,3.52]
[1764558216286,8.56374036,127.45,127.38,0.71]
[1764558216462,7.89374036,127.41,127.39,3.52]
[1764558216660,0.67,127.44,127.39,3.52]
[1764558216661,7.89374036,127.42,127.39,3.52]
[1764558216866,7.89374036,127.43,127.4,0.71]
[1764558217374,7.89374036,127.44,127.4,0.71]
[1764558217571,15.74132122,127.43,127.4,0.71]
[1764558217970,7.89374036,127.42,127.39,3.52]
[1764558218175,7.89374036,127.42,127.39,4.23]
[1764558218492,7.89374036,127.42,127.4,0.71]
[1764558218863,7.89374036,127.42,127.39,11.36988585]
[1764558218864,7.89374036,127.41,127.39,3.52]
[1764558219065,7.89374036,127.41,127.39,4.23]
[1764558219496,7.89374036,127.41,127.39,0.71]
[1764558219661,7.89374036,127.41,127.4,3.52]
[1764558220099,20.28630107,127.45,127.4,4.23]
[1764558220261,7.89374036,127.43,127.4,4.23]
[1764558220679,7.89374036,127.41,127.4,3.52]
[1764558222194,8.56374036,127.41,127.4,3.52]
[1764558223178,7.89374036,127.41,127.4,3.52]
[1764558223687,8.56374036,127.41,127.37,3.52]
[1764558223890,7.89374036,127.4,127.37,4.23]
[1764558225102,15.74335313,127.4,127.38,0.71]
[1764558225274,7.84961277,127.4,127.38,0.71]
[1764558226191,7.89374036,127.45,127.39,24.20260436]
[1764558226390,7.89374036,127.45,127.4,3.52]
[1764558226594,7.89374036,127.45,127.4,4.23]
[1764558226770,7.89374036,127.41,127.4,3.52]
[1764558226970,7.84929356,127.4,127.38,3.52]
[1764558227275,16.41303392,127.4,127.38,3.52]
[1764558227983,7.89374036,127.39,127.38,3.52]
[1764558228288,16.41303392,127.4,127.38,3.52]
[1764558228798,7.89374036,127.39,127.36,0.71]
[1764558229008,7.84929356,127.4,127.37,3.52]
[1764558229306,15.74303392,127.4,127.37,4.23]
[1764558231795,7.84929356,127.4,127.38,0.71]
[1764558232103,15.74303392,127.4,127.37,3.52]
[1764558232268,15.74303392,127.4,127.37,4.23]
[1764558232673,7.84888087,127.41,127.38,0.71]
[1764558232895,7.89374036,127.42,127.38,0.71]
[1764558233301,7.89374036,127.41,127.38,0.71]
[1764558233471,7.89374036,127.41,127.38,62.21]
[1764558233799,16.41233873,127.42,127.38,62.21]
[1764558234290,7.89374036,127.41,127.38,62.21]
[1764558234596,7.89374036,127.4,127.38,61.5]
[1764558234805,7.89374036,127.4,127.39,3.52]
[1764558235301,8.56374036,127.4,127.34,0.71]
[1764558235501,7.89374036,127.36,127.35,3.52]
[1764558236198,7.89374036,127.36,127.34,3.52]
[1764558236411,0.67,127.37,127.34,3.52]
[1764558236579,7.89374036,127.36,127.34,3.52]
[1764558237583,15.74595533,127.36,127.34,3.52]
[1764558237989,7.85094911,127.38,127.35,0.65]
[1764558238299,15.74468947,127.38,127.35,0.65]
[1764558238598,7.89374036,127.38,127.35,0.65]
[1764558238801,16.4143458,127.38,127.34,3.52]
[1764558238997,15.7443458,127.38,127.34,3.52]
[1764558239194,15.7443458,127.38,127.35,4.17]
[1764558239195,35.37066076,127.38,127.35,4.17]
[1764558239403,15.7443458,127.38,127.35,4.17]
[1764558239601,7.89374036,127.37,127.33,8.50360822]
[1764558239809,7.89374036,127.37,127.34,3.52]
[1764558240106,7.89374036,127.37,127.34,4.17]
[1764558240304,7.89374036,127.36,127.35,3.52]
[1764558241804,7.85175879,127.36,127.35,3.52]
[1764558242028,7.85175879,127.36,127.3,3.52]
[1764558242029,43.93863649,127.36,127.3,3.52]
[1764558242315,0.67,127.35,127.3,3.52]
[1764558242483,0.67,127.35,127.29,0.65]
[1764558242809,36.29110069,127.36,127.29,0.65]
[1764558242810,27.48115577,127.36,127.3,3.52]
[1764558243011,35.37489613,127.36,127.3,11.41374036]
[1764558243202,7.89374036,127.35,127.31,0.65]
[1764558243403,7.89374036,127.35,127.29,7.85607667]
[1764558243404,7.89374036,127.34,127.29,7.85607667]
[1764558243717,15.74837508,127.32,127.3,3.52]
[1764558244212,7.85402237,127.33,127.31,0.65]
[1764558244508,15.74776273,127.33,127.3,4.17]
[1764558244804,7.85402237,127.33,127.3,4.17]
[1764558245587,15.74776273,127.33,127.3,0.65]
[1764558245794,15.74776273,127.33,127.31,3.52]
[1764558246013,32.05550921,127.35,127.31,3.52]
[1764558246310,7.85290485,127.35,127.32,0.65]
[1764558246807,7.85161312,127.37,127.33,7.89374036]
[1764558246985,7.85161312,127.37,127.32,70.04374036]
[1764558246986,15.74535348,127.37,127.32,70.04374036]
[1764558247190,7.85161312,127.37,127.32,70.04374036]
[1764558247494,7.85161312,127.37,127.33,0.65]
[1764558247683,7.85161312,127.37,127.34,3.52]
[1764558248083,7.85161312,127.37,127.34,4.17]
[1764558248311,7.85161312,127.37,127.35,0.65]
[1764558248994,7.85034561,127.39,127.35,0.65]
[1764558249196,7.85034561,127.39,127.36,7.89374036]
[1764558249403,7.84867749,127.41,127.37,11.41374036]
[1764558249909,7.84822808,127.42,127.38,16.39426634]
[1764558250234,7.89374036,127.43,127.38,16.39426634]
[1764558250235,15.74148454,127.43,127.39,0.65]
[1764558250522,24.15660818,127.43,127.4,3.52]
[1764558250728,16.308864,127.43,127.4,3.52]
[1764558250891,24.15633062,127.43,127.4,4.17]
[1764558251091,7.89374036,127.44,127.4,4.17]
[1764558251092,15.74077409,127.44,127.4,3.52]
[1764558251397,20.2863784,127.45,127.4,3.52]
[1764558251398,15.73940202,127.46,127.41,0.65]
[1764558251604,7.89374036,127.45,127.41,0.65]
[1764558251801,15.73997686,127.45,127.41,0.65]
[1764558252198,7.8462365,127.45,127.41,8.4984691]
[1764558252394,7.8462365,127.45,127.42,3.52]
[1764558252593,16.40955252,127.46,127.42,4.17]
[1764558253397,7.89374036,127.45,127.42,4.17]
[1764558253913,15.74035442,127.45,127.42,4.17]
[1764558254333,15.73996773,127.45,127.42,0.65]
[1764558254536,16.40951109,127.46,127.43,3.52]
[1764558254744,7.89374036,127.45,127.43,3.52]
[1764558255037,7.89374036,127.44,127.42,3.52]
[1764558255736,7.89374036,127.45,127.42,3.52]
[1764558255937,15.7399744,127.45,127.42,3.52]
[1764558257032,15.7399744,127.45,127.42,4.17]
[1764558257239,16.40950166,127.46,127.42,4.17]
[1764558258141,7.89374036,127.46,127.42,11.36795605]
[1764558258311,15.7381081,127.48,127.43,0.65]
[1764558258512,7.89374036,127.47,127.43,0.65]
[1764558259247,8.56374036,127.47,127.43,0.65]
[1764558259816,8.56374036,127.47,127.43,62.15]
[1764558260217,7.89374036,127.47,127.44,0.65]
[1764558260417,12.36040148,127.47,127.44,0.65]
[1764558260922,12.36040148,127.47,127.45,3.52]
[1764558262532,20.20545714,127.47,127.45,3.52]
[1764558263423,20.87545714,127.47,127.45,3.52]
[1764558263609,20.20545714,127.47,127.45,3.52]
[1764558263815,13.03040148,127.46,127.41,0.65]
[1764558264116,12.36040148,127.44,127.41,4.15]
[1764558264841,20.20736828,127.44,127.41,4.15]
[1764558265139,12.36040148,127.43,127.41,4.15]
[1764558267541,13.08040148,127.42,127.38,8.54027678]
[1764558267720,12.36040148,127.41,127.39,3.5]
[1764558267920,17.028864,127.44,127.39,4.19]
[1764558268242,12.36040148,127.41,127.39,4.19]
[1764558268624,12.36040148,127.4,127.37,8.54091045]
[1764558268834,12.36040148,127.41,127.38,3.5]
[1764558269029,20.208463,127.42,127.38,4.19]
[1764558269337,12.36040148,127.42,127.39,3.5]
[1764558269540,12.36040148,127.42,127.39,4.19]
[1764558270318,20.20867805,127.42,127.39,4.19]
[1764558270736,12.36040148,127.41,127.39,4.19]
[1764558271127,8.56748209,127.43,127.39,4.19]
[1764558271321,12.36040148,127.42,127.39,4.19]
[1764558271530,12.36040148,127.41,127.39,4.19]
[1764558272540,12.36040148,127.41,127.4,3.5]
[1764558272743,20.20871149,127.42,127.4,3.5]
[1764558273429,12.36040148,127.42,127.4,3.5]
[1764558273640,12.36040148,127.42,127.4,4.19]
[1764558274137,20.2084715,127.42,127.4,4.19]
[1764558274344,20.2084715,127.42,127.4,3.5]
[1764558275047,7.84744565,127.43,127.41,0.69]
[1764558275431,20.92784713,127.43,127.4,3.5]
[1764558275632,20.20784713,127.43,127.4,4.19]
[1764558276245,12.36040148,127.42,127.4,4.19]
[1764558278231,20.20784713,127.43,127.4,4.19]
[1764558278442,12.36040148,127.42,127.4,3.5]
[1764558278649,12.36040148,127.41,127.4,3.5]
[1764558278944,20.20907897,127.41,127.4,3.5]
[1764558280052,12.36040148,127.42,127.4,3.5]
[1764558280230,12.36040148,127.42,127.4,65.0]
[1764558280432,12.36040148,127.42,127.4,65.69]
[1764558280947,20.20836327,127.43,127.41,0.69]
[1764558281147,20.20836327,127.43,127.4,65.69]
[1764558281632,20.20836327,127.43,127.4,62.19]
[1764558281836,12.36040148,127.41,127.4,61.5]
[1764558282044,12.36040148,127.41,127.4,65.0]
[1764558282250,20.20892805,127.42,127.4,65.0]
[1764558282548,12.28925012,127.42,127.4,65.0]
[1764558283347,5.16072355,127.41,127.38,61.5]
[1764558283544,4.44072355,127.39,127.37,3.5]
[1764558283851,31.90940394,127.42,127.37,3.5]
[1764558284045,31.90940394,127.42,127.38,0.69]
[1764558284950,32.62940394,127.42,127.38,0.69]
[1764558285150,13.00925012,127.42,127.38,8.54049952]
[1764558285649,0.72,127.41,127.37,61.5]
[1764558285825,0.72,127.41,127.33,139.64197909]
[1764558285826,4.44072355,127.38,127.33,7.85335282]
[1764558286028,4.44072355,127.36,127.34,3.5]
[1764558286749,4.44072355,127.36,127.34,4.19]
[1764558286953,12.29237049,127.37,127.34,4.19]
[1764558288056,12.29237049,127.37,127.34,3.5]
[1764558288242,12.29237049,127.37,127.34,4.19]
[1764558288441,20.23136946,127.37,127.35,0.69]
[1764558288650,7.85164694,127.37,127.35,0.69]
[1764558289234,36.65142914,127.41,127.35,0.69]
[1764558289539,12.37972252,127.38,127.35,0.69]
[1764558290957,12.37972252,127.38,127.35,8.54228564]
[1764558291449,13.09972252,127.37,127.33,62.19]
[1764558291661,12.37972252,127.36,127.34,3.5]
[1764558292648,20.23156894,127.36,127.33,62.19]
[1764558292854,12.37972252,127.34,127.33,65.0]
[1764558293050,0.72,127.43,127.35,16.308864]
[1764558293259,0.72,127.43,127.36,19.808864]
[1764558293438,12.37972252,127.42,127.36,32.87858652]
[1764558293760,12.37972252,127.4,127.36,16.308864]